bitfinex/quotes_BTCUSD_20230117
["timestamp","ask_amount","ask_price","bid_price","bid_amount"]
[1673971111793,0.19072595,21177.0,21173.0,0.48524954]
[1673971112314,0.53902332,21179.0,21174.0,0.13255774]
[1673971112544,0.38902332,21179.0,21174.0,0.13255774]
[1673971112852,0.005,21176.0,21174.0,0.13255774]
[1673971113065,0.005,21176.0,21173.0,0.95753254]
[1673971113066,0.19072595,21176.0,21173.0,0.48524954]
[1673971113303,0.61433565,21179.0,21173.0,0.48524954]
[1673971113304,0.64658909,21175.0,21173.0,0.48524954]
[1673971113794,0.45586314,21175.0,21173.0,0.48524954]
[1673971114058,0.00057858,21174.0,21173.0,0.48524954]
[1673971114295,0.2749,21178.0,21173.0,0.48524954]
[1673971114545,0.2749,21178.0,21172.0,0.36273119]
[1673971114546,0.01,21175.0,21172.0,0.36273119]
[1673971115370,0.00057858,21174.0,21172.0,0.36273119]
[1673971115587,0.009,21175.0,21173.0,0.0085]
[1673971116326,0.64963528,21178.0,21173.0,0.0085]
[1673971116570,0.45890933,21178.0,21173.0,0.480792]
[1673971116827,0.01,21175.0,21174.0,0.21386652]
[1673971117064,0.45890933,21178.0,21175.0,0.01392972]
[1673971117323,0.45890933,21178.0,21175.0,0.48617872]
[1673971117560,0.45890933,21178.0,21176.0,0.0085]
[1673971117818,0.9305,21180.0,21178.0,0.47098847]
[1673971118072,0.47765669,21181.0,21178.0,0.47098847]
[1673971119054,0.1249,21183.0,21178.0,0.47098847]
[1673971119346,0.082,21181.0,21179.0,0.0085]
[1673971119574,0.50407856,21184.0,21179.0,0.60505]
[1673971119831,0.082,21181.0,21179.0,1.077215]
[1673971120082,0.50407856,21184.0,21179.0,1.077215]
[1673971120319,0.008,21181.0,21179.0,0.961815]
[1673971120574,0.008,21181.0,21180.0,0.08335]
[1673971120816,0.008,21181.0,21180.0,0.555493]
[1673971121046,0.00857858,21181.0,21179.0,0.481165]
[1673971121292,0.00857858,21181.0,21178.0,0.89915083]
[1673971121293,0.19130453,21181.0,21178.0,0.89915083]
[1673971121535,0.19930453,21181.0,21179.0,0.009]
[1673971121815,0.00057858,21181.0,21178.0,0.89915083]
[1673971122058,0.00857858,21181.0,21179.0,0.009]
[1673971122289,0.00857858,21181.0,21178.0,0.89915083]
[1673971122290,0.00057858,21181.0,21178.0,0.89915083]
[1673971122535,0.009,21181.0,21179.0,0.009]
[1673971122775,0.50198021,21182.0,21178.0,0.89915083]
[1673971123058,0.005,21181.0,21179.0,0.009]
[1673971123297,0.00557858,21181.0,21179.0,0.009]
[1673971123540,0.66842953,21181.0,21179.0,0.009]
[1673971123785,0.8960683,21180.0,21179.0,0.009]
[1673971124038,1.8403543,21180.0,21179.0,0.009]
[1673971124777,1.78886599,21180.0,21179.0,0.009]
[1673971125011,1.78886599,21180.0,21179.0,6e-05]
[1673971125289,1.83286599,21180.0,21179.0,0.00106]
[1673971125537,1.78886599,21180.0,21179.0,6e-05]
[1673971125787,1.87186599,21180.0,21179.0,0.00106]
[1673971126029,1.74696599,21180.0,21179.0,0.00106]
[1673971129269,0.083,21180.0,21179.0,0.548075]
[1673971129547,0.083,21180.0,21179.0,1.02874]
[1673971130025,0.944142,21184.0,21180.0,0.10587973]
[1673971130309,1.89401272,21185.0,21180.0,1.48687903]
[1673971130564,0.39556272,21185.0,21181.0,0.0085]
[1673971130808,0.39556272,21185.0,21181.0,1.3894333]
[1673971131267,0.39556272,21185.0,21181.0,0.95272]
[1673971131513,0.47301,21186.0,21181.0,1.04472]
[1673971131762,0.66373595,21186.0,21181.0,1.04472]
[1673971132007,0.66373595,21186.0,21181.0,0.480603]
[1673971132008,1.13574495,21186.0,21181.0,0.480603]
[1673971132270,1.13574495,21186.0,21181.0,0.092]
[1673971132271,0.69392174,21185.0,21181.0,0.092]
[1673971132515,1.58183095,21184.0,21180.0,0.10587973]
[1673971132767,0.32266758,21183.0,21180.0,0.10587973]
[1673971133014,1.266285,21182.0,21180.0,0.10587973]
[1673971133265,0.322089,21181.0,21180.0,0.10587973]
[1673971133534,0.944213,21182.0,21181.0,0.092]
[1673971133767,0.944213,21182.0,21180.0,0.10587973]
[1673971134026,0.322089,21181.0,21180.0,0.11287973]
[1673971134271,1.266331,21181.0,21180.0,0.10587973]
[1673971134991,0.79421,21181.0,21180.0,0.10587973]
[1673971135247,0.94478376,21182.0,21180.0,0.10587973]
[1673971135248,0.94478376,21182.0,21180.0,0.10993973]
[1673971135487,0.472053,21185.0,21180.0,0.58208273]
[1673971135488,0.47205,21185.0,21180.0,0.58208273]
[1673971135786,0.47205,21185.0,21180.0,1.05422573]
[1673971136250,0.66277595,21185.0,21180.0,1.05422573]
[1673971136502,0.40343252,21184.0,21180.0,1.05422573]
[1673971137021,0.473031,21186.0,21180.0,1.05422573]
[1673971137285,0.473031,21186.0,21180.0,1.49398921]
[1673971137539,0.66375695,21186.0,21180.0,1.49398921]
[1673971137795,0.66375695,21186.0,21180.0,1.48998921]
[1673971138046,0.66375695,21186.0,21180.0,1.58198921]
[1673971138517,0.66375695,21186.0,21181.0,0.48020039]
[1673971138758,0.66375695,21186.0,21182.0,0.944184]
[1673971139002,0.473031,21186.0,21182.0,0.944184]
[1673971139480,0.001,21186.0,21182.0,0.944184]
[1673971141208,0.001,21186.0,21183.0,0.15]
[1673971141446,0.21865876,21186.0,21182.0,0.564097]
[1673971141695,0.66374195,21186.0,21182.0,0.564097]
[1673971141929,0.473016,21186.0,21182.0,1.036195]
[1673971142171,0.001,21186.0,21183.0,0.45917935]
[1673971142415,0.001,21186.0,21185.0,0.14044053]
[1673971142666,0.001,21186.0,21185.0,1.55673414]
[1673971142906,0.48279958,21189.0,21186.0,0.00162523]
[1673971143176,0.48279958,21189.0,21186.0,0.44138871]
[1673971143412,0.48279958,21189.0,21186.0,0.00162523]
[1673971143917,0.48279958,21189.0,21186.0,0.47363123]
[1673971143918,0.01083958,21189.0,21186.0,0.47363123]
[1673971144172,0.01083958,21189.0,21186.0,1.08608076]
[1673971144671,0.19130453,21188.0,21186.0,0.00162523]
[1673971144902,0.47254758,21188.0,21186.0,0.00162523]
[1673971145389,0.471969,21188.0,21186.0,0.09362523]
[1673971145644,0.471969,21188.0,21186.0,0.00162523]
[1673971146381,0.471969,21188.0,21186.0,0.07162523]
[1673971147143,0.48279858,21189.0,21186.0,0.07162523]
[1673971147632,0.01083958,21189.0,21186.0,0.54363123]
[1673971147874,0.01083958,21189.0,21187.0,2.13180656]
[1673971148146,0.01083958,21190.0,21188.0,1.10237]
[1673971148147,0.0074261,21190.0,21188.0,1.10237]
[1673971148393,0.0074261,21190.0,21188.0,1.54213348]
[1673971148634,0.0074261,21190.0,21188.0,1.67407401]
[1673971149123,0.0074261,21190.0,21188.0,1.53363348]
[1673971149392,0.0074261,21190.0,21187.0,0.092]
[1673971149393,0.53567432,21189.0,21187.0,0.092]
[1673971149653,1.47957532,21189.0,21187.0,0.092]
[1673971150140,0.53567432,21189.0,21187.0,0.092]
[1673971150379,0.4793461,21190.0,21187.0,0.563985]
[1673971150380,0.0074261,21190.0,21187.0,0.563985]
[1673971150623,0.0074261,21190.0,21188.0,1.29512446]
[1673971150884,0.0074261,21190.0,21189.0,2.61815665]
[1673971151399,0.0074261,21190.0,21188.0,0.78895644]
[1673971151400,0.39963193,21190.0,21188.0,0.78895644]
[1673971151641,0.39905335,21190.0,21188.0,0.69695644]
[1673971151893,0.39905335,21190.0,21188.0,0.92939697]
[1673971151894,0.0074261,21190.0,21188.0,0.92939697]
[1673971152177,0.0074261,21190.0,21189.0,0.30844]
[1673971152403,0.0074261,21190.0,21189.0,2.42879915]
[1673971152644,0.0074261,21190.0,21189.0,1.79835715]
[1673971152896,0.0074261,21190.0,21189.0,0.713882]
[1673971153171,0.0074261,21190.0,21189.0,0.621882]
[1673971154152,0.0074261,21190.0,21188.0,1.40134397]
[1673971154405,0.0074261,21190.0,21188.0,0.83739697]
[1673971154646,0.0074261,21190.0,21189.0,0.092]
[1673971154893,0.0074261,21190.0,21188.0,0.69695644]
[1673971154894,1.59973551,21190.0,21188.0,0.69695644]
[1673971155134,0.322089,21189.0,21188.0,0.78395644]
[1673971155382,0.322089,21189.0,21188.0,0.69195644]
[1673971155383,0.943884,21189.0,21188.0,0.69195644]
[1673971156124,0.86749095,21190.0,21188.0,0.69195644]
[1673971156402,0.86750595,21190.0,21189.0,0.15]
[1673971156635,0.471916,21191.0,21188.0,0.78395644]
[1673971156878,0.48271158,21193.0,21188.0,2.12935275]
[1673971157118,0.48271158,21193.0,21188.0,2.56911623]
[1673971157354,0.000134,21189.0,21188.0,2.61755676]
[1673971157595,0.000134,21189.0,21188.0,3.19182355]
[1673971157847,0.000134,21189.0,21188.0,3.33243884]
[1673971158146,0.000134,21189.0,21188.0,3.42543884]
[1673971158399,0.000134,21189.0,21188.0,3.77220232]
[1673971158659,0.000134,21189.0,21188.0,4.16450481]
[1673971158906,0.01083958,21193.0,21189.0,0.00014244]
[1673971159140,0.01083958,21193.0,21190.0,0.471916]
[1673971160384,0.67341953,21193.0,21189.0,0.91183092]
[1673971160618,0.01083958,21193.0,21189.0,1.38378992]
[1673971160856,0.01083958,21193.0,21190.0,0.092]
[1673971161110,0.01083958,21193.0,21190.0,0.471909]
[1673971161596,0.01083958,21193.0,21191.0,0.15]
[1673971162099,0.01083958,21193.0,21191.0,1.09379]
[1673971162566,0.01083958,21193.0,21191.0,1.53355348]
[1673971163579,0.01083958,21193.0,21191.0,1.62555348]
[1673971163814,1e-08,21193.0,21192.0,0.45912777]
[1673971164060,0.01083958,21195.0,21192.0,0.45912777]
[1673971164061,0.01083958,21195.0,21193.0,5.999e-05]
[1673971164307,0.01083958,21195.0,21194.0,0.943662]
[1673971164556,0.01083958,21195.0,21194.0,1.53342548]
[1673971164799,0.01083958,21195.0,21194.0,1.38342548]
[1673971165265,0.01083958,21195.0,21194.0,1.53342548]
[1673971165775,0.01083958,21195.0,21194.0,0.943662]
[1673971166024,0.00797744,21198.0,21195.0,0.15]
[1673971166277,0.00797744,21198.0,21194.0,0.91159448]
[1673971166572,0.00797744,21198.0,21193.0,0.91167047]
[1673971166573,0.62970082,21198.0,21193.0,0.91167047]
[1673971166812,0.63829353,21197.0,21194.0,0.093]
[1673971167070,1.73745,21196.0,21194.0,0.093]
[1673971167328,0.446189,21195.0,21193.0,5.999e-05]
[1673971167563,0.446189,21195.0,21194.0,0.07]
[1673971167564,0.595925,21195.0,21194.0,0.07]
[1673971167812,1.265723,21195.0,21193.0,5.999e-05]
[1673971168055,0.471814,21195.0,21194.0,0.09306]
[1673971168515,0.943623,21195.0,21194.0,6e-05]
[1673971168563,1.265712,21195.0,21194.0,6e-05]
[1673971168812,0.793903,21195.0,21194.0,6e-05]
[1673971169579,1.7167853,21195.0,21194.0,6e-05]
[1673971169818,2.49398699,21195.0,21194.0,0.00706]
[1673971170054,2.49398699,21195.0,21194.0,6e-05]
[1673971170543,2.61888699,21195.0,21194.0,6e-05]
[1673971170787,3.24198699,21195.0,21194.0,6e-05]
[1673971171028,3.06501369,21195.0,21194.0,0.00806]
[1673971171529,3.06501369,21195.0,21194.0,6e-05]
[1673971171758,0.58708645,21194.0,21193.0,5.999e-05]
[1673971172003,2.87983914,21194.0,21193.0,5.999e-05]
[1673971173046,3.85962935,21194.0,21193.0,5.999e-05]
[1673971173288,5.09458795,21194.0,21193.0,5.999e-05]
[1673971173537,5.09458795,21194.0,21193.0,0.00705999]
[1673971173538,5.10158795,21194.0,21193.0,0.00705999]
[1673971173785,4.53598555,21194.0,21189.0,0.00014244]
[1673971174023,4.53598555,21194.0,21188.0,0.64781609]
[1673971174024,0.15,21189.0,21188.0,0.64781609]
[1673971174267,2.85584264,21189.0,21188.0,0.64781609]
[1673971174503,3.23821886,21189.0,21188.0,0.64781609]
[1673971174766,2.46411669,21189.0,21188.0,0.64781609]
[1673971175006,2.76411669,21189.0,21188.0,0.64781609]
[1673971175256,1.862815,21189.0,21188.0,0.64781609]
[1673971175759,1.390873,21189.0,21188.0,0.64781609]
[1673971176473,1.404873,21189.0,21188.0,0.65481609]
[1673971177438,1.40545158,21189.0,21188.0,0.65481609]
[1673971178479,1.28055158,21189.0,21188.0,0.65481609]
[1673971178730,1.28055158,21189.0,21188.0,1.07049237]
[1673971178731,0.014,21189.0,21188.0,1.07049237]
[1673971179692,0.014,21189.0,21188.0,1.22049237]
[1673971179937,0.471889,21192.0,21188.0,1.21349237]
[1673971180185,0.013,21189.0,21188.0,1.50750283]
[1673971180434,0.943771,21192.0,21188.0,1.21349237]
[1673971180685,0.943771,21192.0,21188.0,1.27549237]
[1673971180686,0.001,21189.0,21188.0,1.27549237]
[1673971180919,0.001,21189.0,21188.0,1.12549237]
[1673971181609,0.001,21189.0,21188.0,1.27549237]
[1673971182819,0.001,21189.0,21188.0,1.12549237]
[1673971184765,0.001,21189.0,21188.0,1.27549237]
[1673971185498,0.001,21189.0,21188.0,1.74745737]
[1673971185760,0.001,21189.0,21188.0,2.79060363]
[1673971186472,0.001,21189.0,21188.0,2.35282237]
[1673971186703,0.00157858,21189.0,21188.0,2.0695484]
[1673971186943,0.00157858,21189.0,21188.0,1.12549237]
[1673971186944,0.001,21189.0,21188.0,1.12549237]
[1673971187189,0.001,21189.0,21188.0,1.26623185]
[1673971187973,0.001,21189.0,21188.0,2.00524077]
[1673971188478,0.001,21189.0,21188.0,0.85055557]
[1673971188955,0.472942,21189.0,21188.0,0.70981609]
[1673971189203,0.001,21189.0,21188.0,0.85055557]
[1673971189434,0.001,21189.0,21188.0,1.00055557]
[1673971189681,0.001,21189.0,21188.0,1.21117086]
[1673971189937,0.001,21189.0,21188.0,1.7567027]
[1673971190163,0.001,21189.0,21188.0,0.70981609]
[1673971190410,0.15291741,21189.0,21188.0,0.70981609]
[1673971190657,1.26755158,21189.0,21188.0,0.70981609]
[1673971190901,1.26755158,21189.0,21188.0,0.70781609]
[1673971190902,1.266973,21189.0,21188.0,0.70781609]
[1673971191146,0.944884,21189.0,21188.0,0.70781609]
[1673971191414,0.472942,21189.0,21188.0,0.70781609]
[1673971191643,0.001,21189.0,21188.0,0.70781609]
[1673971191876,0.944884,21189.0,21188.0,0.70781609]
[1673971192120,1.265973,21189.0,21188.0,0.64581609]
[1673971192595,1.26655158,21189.0,21188.0,0.64581609]
[1673971192862,1.265973,21189.0,21188.0,0.64581609]
[1673971193596,1.15227382,21189.0,21188.0,0.64581609]
[1673971194715,1.1598524,21189.0,21188.0,0.64581609]
[1673971194994,1.15927382,21189.0,21188.0,0.64581609]
[1673971195795,1.1598524,21189.0,21188.0,0.64581609]
[1673971196060,1.15227382,21189.0,21188.0,0.64581609]
[1673971196330,1.15227382,21189.0,21188.0,0.65181609]
[1673971196331,0.69733182,21189.0,21188.0,0.65181609]
[1673971196612,0.37524282,21189.0,21188.0,0.65181609]
[1673971196876,0.84718482,21189.0,21188.0,0.65181609]
[1673971197128,1.16927382,21189.0,21188.0,0.65181609]
[1673971197958,1.1698524,21189.0,21188.0,0.65181609]
[1673971198207,1.16927382,21189.0,21188.0,0.65181609]
[1673971198723,1.1698524,21189.0,21188.0,0.65181609]
[1673971199215,2.07195409,21189.0,21188.0,0.65181609]
[1673971199238,2.19575409,21189.0,21188.0,0.65181609]
[1673971199739,2.34575409,21189.0,21188.0,0.65181609]
[1673971200301,2.32875409,21189.0,21188.0,0.64581609]
[1673971200510,2.74906796,21189.0,21188.0,0.64681609]
[1673971201038,2.74906796,21189.0,21188.0,0.58717082]
[1673971201039,2.59906796,21189.0,21188.0,0.58717082]
[1673971201581,2.26475409,21189.0,21188.0,0.58717082]
[1673971204091,2.28332377,21189.0,21188.0,0.58717082]
[1673971204355,2.28332377,21189.0,21188.0,0.48322517]
[1673971204613,2.28332377,21189.0,21188.0,0.09714129]
[1673971206887,0.48488057,21188.0,21186.0,0.69862822]
[1673971207120,3.11183869,21187.0,21186.0,0.69862822]
[1673971207653,3.12033869,21187.0,21186.0,0.43843622]
[1673971207933,4.46833869,21187.0,21182.0,2.63095235]
[1673971208171,0.2498,21183.0,21182.0,2.63095235]
[1673971208431,3.43662064,21183.0,21182.0,2.63095235]
[1673971208687,3.23739469,21183.0,21182.0,2.63095235]
[1673971208935,3.24589469,21183.0,21182.0,1.09765235]
[1673971209203,3.65408616,21183.0,21182.0,1.09765235]
[1673971209977,3.74608616,21183.0,21182.0,1.09765235]
[1673971210511,3.74608616,21183.0,21182.0,0.7720649]
[1673971210512,3.33789469,21183.0,21182.0,0.7720649]
[1673971211537,3.07959469,21183.0,21182.0,0.7720649]
[1673971212326,2.77959469,21183.0,21182.0,0.7720649]
[1673971213157,2.90449469,21183.0,21182.0,0.7720649]
[1673971213610,1.830317,21183.0,21182.0,0.7720649]
[1673971213873,0.092,21183.0,21182.0,1.28619471]
[1673971214124,0.092,21183.0,21182.0,1.75829271]
[1673971214382,0.092,21183.0,21182.0,2.23039071]
[1673971214907,0.471984,21188.0,21182.0,2.30549071]
[1673971215180,0.091,21183.0,21182.0,2.23039071]
[1673971215424,0.75896052,21188.0,21182.0,2.23039071]
[1673971215425,0.471991,21187.0,21182.0,2.30619071]
[1673971215689,0.471991,21187.0,21184.0,0.0758]
[1673971216217,0.471991,21187.0,21182.0,1.36179471]
[1673971216218,0.00057858,21186.0,21182.0,1.36179471]
[1673971216464,1.13535153,21186.0,21182.0,1.36179471]
[1673971216719,0.472031,21186.0,21182.0,1.36179471]
[1673971216995,0.562991,21187.0,21182.0,1.36179471]
[1673971217238,0.562991,21187.0,21182.0,1.83389071]
[1673971217239,0.75371695,21187.0,21182.0,1.83389071]
[1673971217753,0.75371695,21187.0,21182.0,0.7720649]
[1673971217754,0.66792764,21186.0,21182.0,0.7720649]
[1673971218005,3.63162154,21185.0,21182.0,0.001]
[1673971218265,3.63162154,21185.0,21179.0,0.00861479]
[1673971218266,0.79929069,21184.0,21179.0,0.00861479]
[1673971218514,2.40627764,21183.0,21179.0,0.00861479]
[1673971218773,1.36561664,21182.0,21179.0,0.00861479]
[1673971219059,1.73903058,21181.0,21179.0,0.00861479]
[1673971219329,0.322089,21180.0,21179.0,0.00861479]
[1673971219651,1.266375,21180.0,21179.0,0.00861479]
[1673971219864,1.72095952,21180.0,21179.0,0.00861479]
[1673971220113,2.56330694,21180.0,21179.0,0.00861479]
[1673971220383,2.86330694,21180.0,21179.0,0.00861479]
[1673971220639,3.33544994,21180.0,21179.0,0.00861479]
[1673971221164,3.42544994,21180.0,21179.0,0.00861479]
[1673971221408,3.134736,21180.0,21179.0,0.00861479]
[1673971221931,2.834736,21180.0,21179.0,0.00861479]
[1673971222219,3.134736,21180.0,21179.0,0.00861479]
[1673971223998,2.28253431,21180.0,21179.0,0.00861479]
[1673971225572,2.28310252,21180.0,21179.0,0.08346479]
[1673971225829,2.28308952,21180.0,21179.0,0.00861479]
[1673971226121,1.96101352,21180.0,21179.0,0.00861479]
[1673971226388,2.28308952,21180.0,21179.0,0.00861479]
[1673971227963,3.28865802,21180.0,21179.0,0.00861479]
[1673971228219,3.76080102,21180.0,21179.0,0.00861479]
[1673971228474,3.28865802,21180.0,21179.0,0.00861479]
[1673971228758,3.06029121,21180.0,21179.0,0.00861479]
[1673971229569,2.28308952,21180.0,21179.0,0.00861479]
[1673971230699,3.06029121,21180.0,21179.0,0.00861479]
[1673971232274,3.06029121,21180.0,21179.0,0.00198585]
[1673971232275,3.90889121,21180.0,21179.0,0.00198585]
[1673971232551,0.00168635,21178.0,21173.0,0.00861479]
[1673971232849,0.1249,21175.0,21173.0,0.00861479]
[1673971233101,2.21610869,21174.0,21173.0,0.00861479]
[1673971233374,2.70741322,21174.0,21173.0,0.00861479]
[1673971233615,2.51668727,21174.0,21173.0,0.00861479]
[1673971235171,2.60768727,21174.0,21173.0,0.00861479]
[1673971237557,2.73218727,21174.0,21173.0,0.00861479]
[1673971238418,2.96833727,21174.0,21173.0,0.00861479]
[1673971238688,2.96933727,21174.0,21173.0,0.00861479]
[1673971238938,2.87733727,21174.0,21173.0,0.00861479]
[1673971239191,3.41826866,21174.0,21173.0,0.00861479]
[1673971240148,2.73318727,21174.0,21173.0,0.00861479]
[1673971240682,2.51668727,21174.0,21173.0,0.00861479]
[1673971240912,2.60868727,21174.0,21173.0,0.00861479]
[1673971241165,2.51668727,21174.0,21173.0,0.00861479]
[1673971241419,2.60868727,21174.0,21173.0,0.00861479]
[1673971241675,3.01431367,21174.0,21173.0,0.00861479]
[1673971241943,1.830907,21174.0,21173.0,0.00861479]
[1673971242194,2.21610869,21174.0,21173.0,0.00861479]
[1673971242451,2.29910869,21174.0,21173.0,0.00961479]
[1673971242697,2.61406433,21174.0,21173.0,0.00861479]
[1673971243229,2.68956433,21174.0,21173.0,0.00861479]
[1673971243477,2.98956433,21174.0,21173.0,0.00861479]
[1673971243737,2.67460869,21174.0,21173.0,0.00861479]
[1673971243976,2.68210869,21174.0,21173.0,0.00961479]
[1673971244224,2.68210869,21174.0,21173.0,0.00861479]
[1673971244225,2.21610869,21174.0,21173.0,0.00861479]
[1673971244471,2.29910869,21174.0,21173.0,0.00861479]
[1673971244715,2.53106433,21174.0,21173.0,0.00861479]
[1673971244960,2.61406433,21174.0,21173.0,0.00961479]
[1673971245208,2.53106433,21174.0,21173.0,0.00861479]
[1673971245475,2.61464291,21174.0,21173.0,0.00961479]
[1673971245819,2.83164291,21174.0,21173.0,0.00861479]
[1673971245978,2.91464291,21174.0,21173.0,0.00961479]
[1673971246246,3.06464291,21174.0,21173.0,0.00961479]
[1673971246502,2.91464291,21174.0,21173.0,0.00961479]
[1673971247997,2.98984291,21174.0,21173.0,0.00961479]
[1673971249031,2.68984291,21174.0,21173.0,0.00961479]
[1673971249334,2.91464291,21174.0,21173.0,0.00961479]
[1673971249555,2.67558727,21174.0,21173.0,0.00961479]
[1673971250384,2.67558727,21174.0,21173.0,0.00461479]
[1673971250575,2.91174727,21174.0,21173.0,0.00461479]
[1673971250835,2.98764727,21174.0,21173.0,0.00461479]
[1673971251092,4.08695677,21174.0,21173.0,0.00461479]
[1673971251605,4.53510279,21174.0,21173.0,0.00121479]
[1673971252380,4.53510279,21174.0,21173.0,0.00027384]
[1673971252710,4.82350279,21174.0,21170.0,0.00941063]
[1673971252939,0.1511,21171.0,21170.0,0.00941063]
[1673971253166,3.13975369,21171.0,21170.0,0.00941063]
[1673971253474,3.62013999,21171.0,21170.0,0.00941063]
[1673971254230,3.70013999,21171.0,21170.0,0.01041063]
[1673971254773,4.19463999,21171.0,21170.0,0.01041063]
[1673971255016,4.43081999,21171.0,21170.0,0.01041063]
[1673971255241,4.79463999,21171.0,21170.0,0.01041063]
[1673971257106,4.19463999,21171.0,21170.0,0.01041063]
[1673971257373,4.79463999,21171.0,21170.0,0.01041063]
[1673971257627,3.42229599,21171.0,21170.0,0.01041063]
[1673971258979,3.34709599,21171.0,21170.0,0.01041063]
[1673971259187,2.79885199,21171.0,21170.0,0.01041063]
[1673971259692,2.30435199,21171.0,21170.0,0.01041063]
[1673971261480,2.30435199,21171.0,21170.0,0.01053416]
[1673971261481,1.50935341,21171.0,21170.0,0.01053416]
[1673971261731,1.83142941,21171.0,21170.0,0.01041063]
[1673971262249,2.30377341,21171.0,21170.0,0.01041063]
[1673971262493,2.58138515,21171.0,21170.0,0.01041063]
[1673971262758,2.88138515,21171.0,21170.0,0.01041063]
[1673971263011,2.95728515,21171.0,21170.0,0.01041063]
[1673971264378,3.5362311,21171.0,21170.0,0.01041063]
[1673971264862,3.39750975,21171.0,21170.0,0.01041063]
[1673971265515,3.39750975,21171.0,21170.0,1.063e-05]
[1673971265516,3.79330933,21171.0,21170.0,1.063e-05]
[1673971265654,3.85856376,21171.0,21169.0,0.00913426]
[1673971265901,2.77332588,21170.0,21169.0,0.00913426]
[1673971266157,4.23385788,21170.0,21169.0,3.426e-05]
[1673971266517,4.23385788,21170.0,21164.0,0.00510784]
[1673971266518,4.88875126,21170.0,21164.0,0.00510784]
[1673971266688,0.71342169,21167.0,21164.0,0.00510784]
[1673971266952,3.73871466,21166.0,21164.0,0.00510784]
[1673971267238,2.18614141,21165.0,21164.0,0.00510784]
[1673971267630,3.87074343,21165.0,21164.0,0.00510784]
[1673971267885,3.68001748,21165.0,21164.0,0.00510784]
[1673971268277,3.68851748,21165.0,21164.0,0.00510784]
[1673971268803,3.82755576,21165.0,21164.0,0.00510784]
[1673971269146,3.68851748,21165.0,21164.0,0.00510784]
[1673971269373,4.81161202,21165.0,21164.0,0.00510784]
[1673971269656,4.69401705,21165.0,21164.0,0.00510784]
[1673971269909,4.46397877,21165.0,21164.0,0.00510784]
[1673971270163,4.55497877,21165.0,21164.0,0.00510784]
[1673971270460,4.46397877,21165.0,21161.0,0.01103045]
[1673971270725,0.86458169,21162.0,21161.0,0.01103045]
[1673971270990,3.37683769,21162.0,21161.0,0.01103045]
[1673971271899,3.53840468,21162.0,21161.0,0.01103045]
[1673971272148,3.16320468,21162.0,21161.0,0.01103045]
[1673971272403,3.23850468,21162.0,21161.0,0.00192993]
[1673971272664,4.10647117,21162.0,21161.0,0.00192993]
[1673971272949,4.18947117,21162.0,21161.0,0.00292993]
[1673971273179,4.10647117,21162.0,21161.0,0.00192993]
[1673971273472,5.32407117,21162.0,21161.0,0.00192993]
[1673971273741,5.40764975,21162.0,21161.0,0.00292993]
[1673971274026,4.88500373,21162.0,21161.0,0.00192993]
[1673971274278,4.96800373,21162.0,21161.0,0.00292993]
[1673971274788,4.53968326,21162.0,21161.0,0.00292993]
[1673971276158,4.97932928,21162.0,21161.0,0.00292993]
[1673971276334,4.53968326,21162.0,21161.0,0.00292993]
[1673971276620,4.97932928,21162.0,21161.0,9.3e-07]
[1673971276911,5.45343145,21162.0,21155.0,0.01103045]
[1673971277106,1.31352169,21158.0,21155.0,0.01103045]
[1673971277393,2.88062764,21157.0,21155.0,0.01103045]
[1673971277645,1.09927769,21156.0,21155.0,0.01103045]
[1673971277902,2.04463569,21156.0,21155.0,0.01103045]
[1673971278282,1.74463569,21156.0,21155.0,0.01126147]
[1673971278449,1.74463569,21156.0,21155.0,0.01203045]
[1673971278699,1.96636486,21156.0,21155.0,0.01203045]
[1673971279211,2.64226486,21156.0,21155.0,0.01203045]
[1673971279464,2.94226486,21156.0,21155.0,0.01103045]
[1673971279732,3.02626486,21156.0,21155.0,0.01203045]
[1673971280013,3.50103538,21156.0,21155.0,0.01203045]
[1673971280224,3.9406814,21156.0,21155.0,0.01203045]
[1673971280486,3.50103538,21156.0,21155.0,0.01203045]
[1673971281002,4.01715998,21156.0,21155.0,0.01203045]
[1673971281535,4.31405998,21156.0,21155.0,0.01203045]
[1673971281767,4.02575998,21156.0,21155.0,0.01203045]
[1673971282327,3.42571396,21156.0,21155.0,0.01203045]
[1673971282616,3.42571396,21156.0,21155.0,0.01103045]
[1673971282617,3.34171396,21156.0,21155.0,0.01103045]
[1673971282854,3.43171396,21156.0,21155.0,0.01103045]
[1673971283121,3.34171396,21156.0,21155.0,0.01103045]
[1673971283903,3.58171396,21156.0,21155.0,0.01103045]
[1673971284756,3.59927301,21156.0,21155.0,0.01103045]
[1673971284906,2.21309191,21156.0,21155.0,0.01103045]
[1673971285409,0.00099955,21155.0,21152.0,0.01187909]
[1673971285657,1.418169,21154.0,21152.0,0.01187909]
[1673971285944,0.32209,21153.0,21152.0,0.01187909]
[1673971286182,1.267582,21153.0,21152.0,0.01187909]
[1673971286437,1.567582,21153.0,21152.0,0.01187909]
[1673971286717,1.567582,21153.0,21152.0,0.50317574]
[1673971286718,1.267582,21153.0,21152.0,0.50317574]
[1673971286979,0.945492,21153.0,21152.0,0.41995574]
[1673971287252,0.945492,21153.0,21152.0,0.01187909]
[1673971287466,1.357582,21153.0,21152.0,0.01187909]
[1673971288225,1.657582,21153.0,21152.0,0.01187909]
[1673971288738,1.567582,21153.0,21152.0,0.01187909]
[1673971288977,1.735482,21153.0,21152.0,0.01187909]
[1673971289477,1.66016058,21153.0,21152.0,0.01187909]
[1673971289762,1.71816058,21153.0,21152.0,0.01187909]
[1673971290018,0.39539953,21152.0,21148.0,0.13179135]
[1673971290233,1.740475,21151.0,21149.0,0.02076914]
[1673971290480,0.32209,21150.0,21149.0,0.02076914]
[1673971290742,0.58612548,21152.0,21149.0,0.02076914]
[1673971290991,0.39539953,21152.0,21149.0,0.02076914]
[1673971291261,0.472808,21151.0,21149.0,0.02076914]
[1673971292322,0.564808,21151.0,21149.0,0.0208906]
[1673971292501,0.564808,21151.0,21149.0,0.00012146]
[1673971292753,0.00057858,21150.0,21148.0,0.68054735]
[1673971293001,0.564808,21151.0,21148.0,0.68054735]
[1673971293255,0.564808,21151.0,21149.0,0.00012146]
[1673971293560,0.472808,21151.0,21148.0,0.20769135]
[1673971294036,0.472766,21153.0,21148.0,1.07750335]
[1673971294295,0.083,21151.0,21150.0,0.50547965]
[1673971294542,0.083,21151.0,21150.0,0.8276911]
[1673971294801,0.00057858,21151.0,21150.0,0.97936965]
[1673971295079,0.083,21151.0,21150.0,2.67021832]
[1673971295316,0.15,21155.0,21150.0,2.95781832]
[1673971295573,0.0001,21151.0,21150.0,2.48624977]
[1673971295859,0.0001,21151.0,21150.0,2.95973977]
[1673971296112,0.0001,21151.0,21150.0,2.95893977]